Cogmind - Beta 12 @@@ ROGUE MODE // 2023.03.06 @ 07:29:50 // Winter2019/RPGLIKE Player: ArabianSandBoa Result: Destroyed by C-35 Carver with Carbide Saw Performance ------------- Evolutions (7) 3500 Regions Visited (21) 4200 Robots Destroyed (579) 2895 Value Destroyed (33668) 33668 Prototype IDs (35) 700 Alien Tech Used (0) 0 Bonus (27577) 27577 TOTAL SCORE: 72540 Bonus ------- Triggered High Security 2000 High Alert Combat Kills 20287 Follower Combat Kills 289 Entered Garrisons 1400 Used RIF Installer 3500 Aligned with FarCom 300 Scanned by Researcher 500 Friendly Fire -699 Cogmind --------- Core Integrity 0/900 Matter 4/300 Energy 163/380 System Corruption 2% Temperature Warm (175) Movement Flying (8) Location -3/Armory Parts ------- > --- POWER (3) -------- Micro Antimatter Reactor Light Quantum Reactor Light Quantum Reactor > --- PROPULSION (9) --- Improved Surge Thruster Improved Surge Thruster Improved Surge Thruster Improved Surge Thruster Improved Surge Thruster Improved Surge Thruster Cooled Nuclear Pulse Thruster Cooled Nuclear Pulse Thruster > --- UTILITY (9) ------ Advanced Power Amplifier Coolant Network Advanced Gravity Neutralizer Experimental Signal Interpreter Experimental Core Analyzer Experimental Core Analyzer Experimental Core Analyzer Advanced Kinecellerator > --- WEAPON (5) ------- XL Autogun Array > --- INVENTORY (5) ---- Advanced Weapon Cycler Advanced Transmission Jammer Advanced Thermal Defense Suite Enhanced Nova Cannon Peak State ------------ > --- POWER ------------ Micro Antimatter Reactor Light Quantum Reactor Light Quantum Reactor > --- PROPULSION ------- Improved Surge Thruster Improved Surge Thruster Improved Surge Thruster Improved Surge Thruster Improved Surge Thruster Improved Surge Thruster Improved Surge Thruster Cooled Nuclear Pulse Thruster Cooled Nuclear Pulse Thruster > --- UTILITY ---------- Coolant Network Advanced Gravity Neutralizer Experimental Signal Interpreter Experimental Core Analyzer Experimental Core Analyzer Experimental Core Analyzer Advanced Kinecellerator Advanced Phase Shifter > --- WEAPON ----------- Enhanced Nova Cannon XL Autogun Array > --- INVENTORY -------- Advanced Power Amplifier Advanced Weapon Cycler Advanced Transmission Jammer Advanced Thermal Defense Suite Improved Remote Datajack [Rating: 205] Favorites ----------- Power Micro Nuclear Core Engine Light Ion Engine Power Core Micro Nuclear Core Reactor Light Quantum Reactor Propulsion Surge Thruster Leg Aluminum Leg Flight Unit Surge Thruster Utility Experimental Core Analyzer Device Advanced Power Amplifier Storage Improved Matter Compressor Processor Experimental Core Analyzer Hackware Hacking Suite Protection Light Armor Plating Weapon XL Autogun Array Energy Gun Medium Laser Energy Cannon Particle Cannon Ballistic Gun XL Autogun Array Launcher Grenade Launcher Special Weapon Improved Remote Datajack Impact Weapon Hammer Build | -11 -10 -10 -10 -9 -8 -8 -8 -8 -7 -7 -7 -7 -6 -6 -5 -5 -4 -3 -3 -3 -3 ------- Run | Jun Mat Min Exi Min Mat Gar Mat Gar Fac Gar Fac Gar Fac Gar Fac Gar Fac Res Gar Res Arm Slots Evolved 22 | 3 5 . 2 1 3 2 . 1 1 . . . 1 1 . 1 1 . . . . Power 2 | . . . 1 . . 1 . . . . . . . . . . . . . . . Propulsion 8 | 3 1 . . . 2 1 . . . . . . . 1 . . . . . . . Utility 8 | . 2 . . 1 1 . . 1 . . . . 1 . . 1 1 . . . . Weapon 4 | . 2 . 1 . . . . . 1 . . . . . . . . . . . . Parts Attached 189 | 1 15 1 1 4 16 9 . 7 8 3 8 4 5 21 8 18 15 13 2 16 14 Power 35 | . 2 . . 1 1 5 . 1 . 1 1 1 . 8 . 4 3 2 . 2 3 Engine 5 | . 1 . . 1 . . . . . . 1 . . 2 . . . . . . . Core 11 | . 1 . . . 1 5 . 1 . . . . . 3 . . . . . . . Reactor 19 | . . . . . . . . . . 1 . 1 . 3 . 4 3 2 . 2 3 Propulsion 51 | . 2 . . 3 10 1 . 2 5 . 4 . 2 4 1 5 . 4 . 5 3 Treads . | . . . . . . . . . . . . . . . . . . . . . . Leg . | . . . . . . . . . . . . . . . . . . . . . . Wheel . | . . . . . . . . . . . . . . . . . . . . . . Hover . | . . . . . . . . . . . . . . . . . . . . . . Flight 51 | . 2 . . 3 10 1 . 2 5 . 4 . 2 4 1 5 . 4 . 5 3 Utility 76 | . 3 1 . . 5 3 . 2 2 2 1 3 3 9 7 7 9 7 2 6 4 Device 54 | . 1 . . . 2 1 . 2 2 2 1 2 2 8 4 5 7 6 . 6 3 Storage 1 | . . . . . . . . . . . . . . . 1 . . . . . . Processor 14 | . 1 . . . 1 1 . . . . . 1 1 1 1 2 2 . 2 . 1 Hackware 6 | . . 1 . . 2 1 . . . . . . . . 1 . . 1 . . . Protection 1 | . 1 . . . . . . . . . . . . . . . . . . . . Artifact . | . . . . . . . . . . . . . . . . . . . . . . Weapon 27 | 1 8 . 1 . . . . 2 1 . 2 . . . . 2 3 . . 3 4 Energy Gun 2 | 1 1 . . . . . . . . . . . . . . . . . . . . Energy Cannon 7 | . 4 . . . . . . . . . . . . . . . . . . 1 2 Ballistic Gun 6 | . . . 1 . . . . 1 . . . . . . . 2 1 . . 1 . Ballistic Cannon . | . . . . . . . . . . . . . . . . . . . . . . Launcher 1 | . 1 . . . . . . . . . . . . . . . . . . . . Special Weapon 9 | . 1 . . . . . . 1 1 . 1 . . . . . 2 . . 1 2 Impact Weapon 2 | . 1 . . . . . . . . . 1 . . . . . . . . . . Slashing Weapon . | . . . . . . . . . . . . . . . . . . . . . . Piercing Weapon . | . . . . . . . . . . . . . . . . . . . . . . Special Melee Weapon . | . . . . . . . . . . . . . . . . . . . . . . Unidentified Prototypes 24 | . . . 1 . . . . . . . 3 . 2 . 2 5 1 2 . 6 2 Parts Lost 4 | . 1 . . . . . . . . . 1 . 1 . . . 1 . . . . Power 3 | . 1 . . . . . . . . . . . 1 . . . 1 . . . . Propulsion . | . . . . . . . . . . . . . . . . . . . . . . Utility 1 | . . . . . . . . . . . 1 . . . . . . . . . . Weapon . | . . . . . . . . . . . . . . . . . . . . . . Highest Loss Streak 1 | . 1 . . . . . . . . . 1 . 1 . . . 1 . . . . To Critical Strikes . | . . . . . . . . . . . . . . . . . . . . . . Average Slot Usage (%) 77 | . 63 75 61 59 80 83 85 83 81 82 78 80 81 84 87 87 85 80 83 80 82 Core 6 | . 7 8 7 6 9 10 15 14 13 10 9 6 4 3 4 . . . . . . Reactor 3 | . . . . . . . . . . . . 1 4 5 8 11 8 7 11 7 11 Leg 1 | . 6 . . . . . . . . . . . . . . . . . . . . Flight 28 | . 9 16 14 21 35 41 40 37 33 36 36 36 34 35 37 36 35 31 30 33 33 Device 13 | . 9 . . . 3 7 10 13 17 17 18 21 23 23 23 15 22 18 23 19 16 Processor 6 | . 3 8 7 6 5 7 10 8 4 4 4 4 5 5 4 11 10 11 10 11 13 Hackware 2 | . . 7 7 6 14 9 5 4 4 4 1 . . . . 1 . 2 . . . Protection 1 | . 4 8 7 6 1 . . . . . . . . . . . . . . . . Energy Cannon 3 | . 10 16 7 . . . . . . . . . . . . . . . . . . Ballistic Gun 3 | . . . 3 6 5 5 5 4 4 4 4 4 4 4 4 7 3 3 3 3 3 Special Weapon 1 | . . . . . . . . . 2 4 4 4 4 4 4 . 3 3 3 2 2 Naked Turns . | . . . . . . . . . . . . . . . . . . . . . . Heaviest Build 72 | 5 19 19 23 26 26 41 39 40 44 44 38 45 52 56 59 69 72 68 63 69 69 Greatest Support 86 | 10 13 13 13 25 38 34 39 44 45 35 40 51 49 62 77 72 86 71 64 84 81 Greatest Overweight (x) 2 | . 1 1 1 1 1 1 1 . 1 1 1 1 1 1 . 2 . 1 . . 1 Average Overweight (x) . | . . 1 . 1 . . . . . 1 . . . . . . . . . . . Largest Inventory Capacity 5 | 1 2 2 2 2 2 2 2 2 2 2 3 3 3 3 4 4 4 4 4 5 5 Average Capacity 2 | . 1 2 2 2 2 2 2 2 2 2 2 3 3 3 3 4 4 4 4 4 5 Most Carried 5 | 1 2 2 2 2 2 2 2 2 2 2 2 3 3 3 4 4 4 4 4 5 5 Average Carried 2 | . 1 . 1 2 1 1 2 1 1 1 2 2 2 2 3 3 3 3 4 3 4 Final Capacity 5 | 1 2 2 2 2 2 2 2 2 2 2 3 3 3 3 4 4 4 4 4 5 5 Final Carried 5 | 1 2 . 2 2 2 2 2 2 1 2 2 3 2 2 4 4 4 4 4 5 4 Class Distribution -------------------- 37% | Scavenger-Sprinter 18% | Mutant 8% | Scavenger-Mutant 7% | Scavenger-Scout 6% | Scavenger-Gunner 6% | Hacker-Sprinter 6% | Gunner 4% | Commander-Gunner 3% | Commander-Sprinter Dominant Class ---------------- Mutant | -10/Materials Scavenger-Mutant | -10/Mines Scavenger-Gunner | -10/Exiles Scavenger-Gunner | -9/Mines Hacker-Sprinter | -8/Materials Hacker-Sprinter | -8/Garrison Scavenger-Sprinter | -8/Materials Scavenger-Sprinter | -8/Garrison Commander-Gunner | -7/Factory Commander-Gunner | -7/Garrison Commander-Sprinter | -7/Factory Scavenger-Sprinter | -7/Garrison Gunner | -6/Factory Scavenger-Scout | -6/Garrison Scavenger-Scout | -5/Factory Scavenger-Sprinter | -5/Garrison Scavenger-Sprinter | -4/Factory Scavenger-Sprinter | -3/Research Scavenger-Sprinter | -3/Garrison Scavenger-Sprinter | -3/Research Scavenger-Sprinter | -3/Armory Resources | -11 -10 -10 -10 -9 -8 -8 -8 -8 -7 -7 -7 -7 -6 -6 -5 -5 -4 -3 -3 -3 -3 ----------- Run | Jun Mat Min Exi Min Mat Gar Mat Gar Fac Gar Fac Gar Fac Gar Fac Gar Fac Res Gar Res Arm Matter Collected 21043 | 200 590 10 . 310 1985 1515 502 1417 59 99 482 1674 467 2473 1054 1610 2935 813 1256 512 1080 Remotely . | . . . . . . . . . . . . . . . . . . . . . . Salvage Created 26952 | . 1039 87 . 434 1808 1274 616 1576 30 99 479 1664 696 2521 2092 2537 4890 520 1359 684 2547 Parts 1520 | . 79 8 . 19 91 107 36 91 5 5 19 72 51 126 110 137 255 38 90 28 153 Haulers Intercepted 22 | . 2 . . . 6 . 2 . . . 4 . 1 . 6 . . . . 1 . Recyclers Shooed 4 | . 2 . . . . . . . . . . . . . 1 . . 1 . . . Parts Field Recycled . | . . . . . . . . . . . . . . . . . . . . . . Retrieved Matter . | . . . . . . . . . . . . . . . . . . . . . . Parts Self-Destructed . | . . . . . . . . . . . . . . . . . . . . . . Prevented . | . . . . . . . . . . . . . . . . . . . . . . Kills | -11 -10 -10 -10 -9 -8 -8 -8 -8 -7 -7 -7 -7 -6 -6 -5 -5 -4 -3 -3 -3 -3 ------- Run | Jun Mat Min Exi Min Mat Gar Mat Gar Fac Gar Fac Gar Fac Gar Fac Gar Fac Res Gar Res Arm Combat Hostiles Destroyed 466 | . 26 4 . 8 25 42 7 40 2 . 1 32 13 44 14 54 80 7 27 2 38 Melee 1 | . . . . . . . . 1 . . . . . . . . . . . . . Guns 430 | . 4 . . 8 21 42 7 38 2 . 1 32 11 44 14 54 78 7 27 2 38 Cannons 23 | . 20 3 . . . . . . . . . . . . . . . . . . . AOE 10 | . 2 . . . 4 . . . . . . . 2 . . . 2 . . . . Classes Destroyed 24 | . 8 1 . 1 2 3 . . 1 . . 3 . . 1 1 2 . . . 1 Worker 10 | . 2 1 . . 2 . 1 . . . . . 1 . 3 . . . . . . Builder 14 | . 4 . . . 1 . 1 . . . . . 3 . 4 . . 1 . . . Tunneler 8 | . 2 . . . 1 . . . . . . . 1 . 2 . . 2 . . . Hauler 22 | . 2 . . . 6 . 2 . . . 4 . 1 . 6 . . . . 1 . Recycler 15 | . . . . 3 2 . 3 . . . 2 . . . 2 . . . . 3 . Mechanic 3 | . . . . . . . . . . . . . . . . . 2 . . . 1 Operator 15 | . 3 . . . 2 . 2 . . . . . 2 . 2 . 2 . . 2 . Watcher 25 | . 3 . . . 2 . 1 . . . . . 2 1 2 . 5 3 . 3 3 Swarmer 101 | . 3 . . 3 4 14 . 9 . 1 . 4 8 21 . 17 8 . 7 . 2 Cutter 13 | . . . . . . . . . 1 . . . . . 1 4 . 3 . 2 2 Saboteur 4 | . . . . . . . . . . . . . . . . . 2 . . . 2 Grunt 162 | . 23 2 . 5 11 9 . 14 1 . . 13 4 14 6 17 22 . 9 . 12 Brawler 11 | . . . . . . . . . . . . 3 . . . 1 5 . . . 2 Duelist 18 | . . . . . . . . . . . . 3 . . . 2 5 . 2 . 6 Protector 10 | . . . . . . 1 . . . . . . . . . . 6 . . . 3 Sentry 60 | . . . . . 8 5 4 6 . . 1 5 1 5 4 10 9 . 1 . 1 Demolisher 3 | . . 2 . . . 1 . . . . . . . . . . . . . . . Specialist 7 | . . . . . . 2 . 5 . . . . . . . . . . . . . Hunter 34 | . . . . . 2 2 3 3 . . . 3 . 2 2 . 7 2 5 . 3 Programmer 33 | . . . . . . 8 . 3 . . . . . . . . 15 1 2 . 4 Heavy 3 | . . . . . . . . . . . . . . . 1 . . 1 . . 1 Behemoth 6 | . . . . . . . . . . . . 1 . 2 . 1 1 . 1 . . Investigator 1 | . . . . . . . . . . . . . . . . . . . . . 1 Executioner 3 | . . . . . . . . . . . . . . . . 2 . . 1 . . Best Kill Streak 42 | . 5 3 . 6 16 25 10 14 2 . 3 11 11 12 14 15 42 6 16 7 24 Combat Bots Only 41 | . 4 2 . 5 7 25 3 14 2 . 1 11 8 12 4 15 41 3 16 2 23 Max Kills in Single Turn 4 | . 2 1 . 1 4 1 2 2 1 1 1 2 4 3 3 2 3 1 2 1 2 Gunslinging . | . . . . . . . . . . . . . . . . . . . . . . Exploded 4 | . 2 . . . 4 . . . . . . . 2 . . . 2 . . . . Melee 1 | . . . . . . . . 1 . . . . . . . . . . . . . Uniques/NPCs Destroyed . | . . . . . . . . . . . . . . . . . . . . . . Combat | -11 -10 -10 -10 -9 -8 -8 -8 -8 -7 -7 -7 -7 -6 -6 -5 -5 -4 -3 -3 -3 -3 -------- Run | Jun Mat Min Exi Min Mat Gar Mat Gar Fac Gar Fac Gar Fac Gar Fac Gar Fac Res Gar Res Arm Damage Taken 10127 | . 1127 148 . 172 191 500 57 584 . . 247 182 583 539 319 740 1341 813 330 741 1513 Core 8141 | . 965 111 . 118 161 400 44 460 . . 195 144 474 429 255 587 1068 659 262 571 1238 Absorbed by Shields 686 | . . . . . . 22 . 21 . . . 13 50 . . . 33 . . . 547 Redirected to Core 6746 | . 486 61 . 108 112 335 44 417 . . 195 126 408 395 236 519 960 583 247 571 943 Core Remaining (%) 98 | 100 . . . 96 . . . 100 . . . 100 . 100 . 100 91 . . . . Volleys Fired 1474 | . 188 10 . 23 117 98 44 78 3 22 26 96 33 149 66 95 206 35 79 22 84 Largest 2 | . 2 2 . 1 1 1 1 1 1 1 1 1 1 1 1 2 1 1 1 1 1 Hottest 136 | . 136 136 . 60 60 60 60 60 60 60 60 60 60 60 60 98 60 60 60 60 120 Shots Fired 1490 | . 195 18 . 23 117 98 44 78 3 22 26 96 33 149 66 96 206 35 79 22 84 Gun 1293 | . 58 . . 23 117 98 44 74 2 10 25 96 33 141 64 96 201 35 76 21 79 Cannon 114 | . 94 18 . . . . . . . . . . . . . . . . . . 2 Launcher 43 | . 43 . . . . . . . . . . . . . . . . . . . . Special 40 | . . . . . . . . 4 1 12 1 . . 8 2 . 5 . 3 1 3 Kinetic 1235 | . . . . 23 117 98 44 74 2 10 25 96 33 141 64 96 201 35 76 21 79 Thermal 172 | . 152 18 . . . . . . . . . . . . . . . . . . 2 Explosive 43 | . 43 . . . . . . . . . . . . . . . . . . . . Electromagnetic . | . . . . . . . . . . . . . . . . . . . . . . Robot Hit Streak 47 | . 7 3 . 13 14 22 11 17 6 8 12 34 15 45 26 47 38 20 34 22 22 Robot Miss Streak 8 | . 4 1 . 3 4 6 3 5 2 1 3 4 3 4 3 8 4 3 2 3 4 Penetration Max . | . . . . . . . . . . . . . . . . . . . . . . Secondary Targets . | . . . . . . . . . . . . . . . . . . . . . . Shots Hit Robots 1021 | . 86 8 . 18 55 65 26 57 3 11 11 70 23 123 58 84 151 26 54 21 71 Core Hits 1091 | . 54 5 . 13 53 58 22 52 2 4 8 66 34 120 66 102 202 25 69 22 114 Critical Kills 1 | . . 1 . . . . . . . . . . . . . . . . . . . Critical Parts Destroyed . | . . . . . . . . . . . . . . . . . . . . . . Critical Strikes 7 | . 6 1 . . . . . . . . . . . . . . . . . . . Burn 6 | . 6 . . . . . . . . . . . . . . . . . . . . Meltdown 1 | . . 1 . . . . . . . . . . . . . . . . . . . Melee Attacks 17 | . 11 6 . . . . . . . . . . . . . . . . . . . Impact 17 | . 11 6 . . . . . . . . . . . . . . . . . . . Slashing . | . . . . . . . . . . . . . . . . . . . . . . Piercing . | . . . . . . . . . . . . . . . . . . . . . . Sneak Attacks 1 | . 1 . . . . . . . . . . . . . . . . . . . . Combat Hostiles . | . . . . . . . . . . . . . . . . . . . . . . Follow-up Attacks . | . . . . . . . . . . . . . . . . . . . . . . Damage Inflicted 69576 | . 2015 205 . 887 3938 3981 1702 3912 60 123 590 4527 1911 8053 4398 6144 13501 2641 4233 1389 5366 Guns 65632 | . 448 . . 887 3138 3981 1702 3604 60 123 590 4527 1449 8053 4325 6144 13392 2221 4233 1389 5366 Cannons 1118 | . 913 205 . . . . . . . . . . . . . . . . . . . Explosions 2061 | . 617 . . . 800 . . . . . . . 462 . 73 . 109 . . . . Melee 37 | . 37 . . . . . . . . . . . . . . . . . . . . Ramming 728 | . . . . . . . . 308 . . . . . . . . . 420 . . . Kinetic 65184 | . . . . 887 3138 3981 1702 3604 60 123 590 4527 1449 8053 4325 6144 13392 2221 4233 1389 5366 Thermal 2464 | . 1616 205 . . 108 . . . . . . . 462 . 73 . . . . . . Explosive 1027 | . 342 . . . 685 . . . . . . . . . . . . . . . . Electromagnetic 136 | . 20 . . . 7 . . . . . . . . . . . 109 . . . . Impact 37 | . 37 . . . . . . . . . . . . . . . . . . . . Slashing . | . . . . . . . . . . . . . . . . . . . . . . Piercing . | . . . . . . . . . . . . . . . . . . . . . . Highest Corruption 4 | . . . . . . . . 2 . . 3 2 . . . . 4 . . . 2 Average Corruption 1 | . . . . . . . . 2 . . 2 1 . . . . 1 . . . 1 Corruption Purged 4 | . . . . . . . . . . . 1 3 . . . . . . . . . Corruption Blocked . | . . . . . . . . . . . . . . . . . . . . . . Effects 18 | . . . . . . . . 8 . . 1 . . . . . 9 . . . . Message Errors 2 | . . . . . . . . 2 . . . . . . . . . . . . . Matter Fused 7 | . . . . . . . . 2 . . . . . . . . 5 . . . . Heat Flow Errors 3 | . . . . . . . . 1 . . 1 . . . . . 1 . . . . Energy Discharges 2 | . . . . . . . . . . . . . . . . . 2 . . . . Parts Rejected 1 | . . . . . . . . 1 . . . . . . . . . . . . . Data Loss (minor) 1 | . . . . . . . . 1 . . . . . . . . . . . . . Data Loss (major) 1 | . . . . . . . . . . . . . . . . . 1 . . . . Alerts 1 | . . . . . . . . 1 . . . . . . . . . . . . . Overload Shots . | . . . . . . . . . . . . . . . . . . . . . . Overflow Damage 551 | . 161 . . . 239 . . 112 . . . . . . . . . 39 . . . Projectiles 5 | . 5 . . . . . . . . . . . . . . . . . . . . Explosions 395 | . 156 . . . 239 . . . . . . . . . . . . . . . . Melee 151 | . . . . . . . . 112 . . . . . . . . . 39 . . . Knockbacks 3 | . . . . . . . . 1 . . . . . . . . . 2 . . . Impact 3 | . . . . . . . . 1 . . . . . . . . . 2 . . . Kinetic . | . . . . . . . . . . . . . . . . . . . . . . Secondary . | . . . . . . . . . . . . . . . . . . . . . . Self-Inflicted Damage 862 | . 63 . . . . . . 154 . . . . 128 . . . 208 309 . . . Shots 8 | . 2 . . . . . . . . . . . 2 . . . 4 . . . . Rammed 9 | . . . . . . . . 6 . . . . . . . . . 3 . . . Targets Rammed 9 | . . . . . . . . 6 . . . . . . . . . 3 . . . Kicked . | . . . . . . . . . . . . . . . . . . . . . . Crushed . | . . . . . . . . . . . . . . . . . . . . . . Highest Temperature 394 | . 318 180 . 246 353 286 330 300 122 38 284 304 117 365 199 154 234 180 308 328 394 Average Temperature 76 | . 69 70 . 74 77 80 112 79 37 19 82 90 95 112 46 34 53 54 77 111 152 Received Heat Transfer 2061 | . 498 . . 90 99 183 9 126 . . . 79 25 156 54 81 177 18 60 202 204 Effects 10 | . 3 . . 2 2 . 1 . . . . . . 1 . . . . . 1 . Shutdowns 1 | . . . . . . . 1 . . . . . . . . . . . . . . Energy Bleed 2 | . 1 . . . . . . . . . . . . . . . . . . 1 . Interference 6 | . 2 . . 2 2 . . . . . . . . . . . . . . . . Short Circuit 1 | . . . . . . . . . . . . . . 1 . . . . . . . Siege Activations . | . . . . . . . . . . . . . . . . . . . . . . Robots Corrupted . | . . . . . . . . . . . . . . . . . . . . . . Combat Hostiles . | . . . . . . . . . . . . . . . . . . . . . . Parts Fried 2 | . . . . . . . . 2 . . . . . . . . . . . . . Impact Corruptions 7 | . . . . . . . . 5 . . . . . . . . . 2 . . . Robots Melted 1 | . . 1 . . . . . . . . . . . . . . . . . . . Combat Hostiles 1 | . . 1 . . . . . . . . . . . . . . . . . . . Parts Melted 6 | . 5 . . . . . . . . . . . . . . . 1 . . . . Heat Transferred 4411 | . 3628 333 . . 50 . . . . . . . 350 . 50 . . . . . . Parts Sabotaged 4 | . . . . . . . . . . . . . . . . . . . . . 4 Parts Stolen . | . . . . . . . . . . . . . . . . . . . . . . Parts Stripped . | . . . . . . . . . . . . . . . . . . . . . . Power Chain Reactions 1 | . . . . . . . . . . . . . . . . . 1 . . . . Missiles Intercepted . | . . . . . . . . . . . . . . . . . . . . . . Alert | -11 -10 -10 -10 -9 -8 -8 -8 -8 -7 -7 -7 -7 -6 -6 -5 -5 -4 -3 -3 -3 -3 ------- Run | Jun Mat Min Exi Min Mat Gar Mat Gar Fac Gar Fac Gar Fac Gar Fac Gar Fac Res Gar Res Arm Peak Influence 6322 | . 1319 702 . 272 1509 2590 1619 2576 1461 1425 1150 2104 1843 2954 2531 3629 6322 3775 4194 3072 3199 Initial 3318 | . . 514 . . 105 980 1262 930 1352 1022 747 805 1104 1290 1550 1771 1904 3318 2831 2358 1597 Average 1741 | . 614 518 . 166 747 2090 1384 1908 1420 1293 917 1524 1212 2345 1930 3057 3829 3539 3662 2738 2210 Maximum Alert Level 5 | . 4 3 . 1 4 5 5 5 4 4 4 5 5 5 5 5 5 5 5 5 5 Low Security (%) 7 | 100 28 . . 57 12 . . . . . . . . . . . . . . . . Level 1 4 | . 9 14 . 42 18 . . . . . . . . . . . . . . . . Level 2 11 | . 18 81 . . 18 . . . . . . . . . . . . . . . . Level 3 9 | . 18 4 . . 17 3 . 11 . 8 97 20 16 . . . . . . . . Level 4 20 | . 25 . . . 33 11 96 22 100 91 2 30 80 15 6 . . . . . 1 Level 5 36 | . . . . . . 84 3 66 . . . 48 2 84 65 100 2 100 100 100 3 High Security 10 | . . . . . . . . . . . . . 1 . 27 . 97 . . . 94 Max Security . | . . . . . . . . . . . . . . . . . . . . . . Squads Dispatched 84 | . 12 . . . 6 . . . 2 . 3 . 1 . 4 . 26 8 . 11 11 Investigation 23 | . 8 . . . 6 . . . 1 . 2 . . . 1 . . 1 . 4 . Extermination . | . . . . . . . . . . . . . . . . . . . . . . Reinforcement 22 | . 4 . . . . . . . 1 . 1 . . . 3 . 3 3 . 5 2 Assault 36 | . . . . . . . . . . . . . . . . . 22 3 . 2 9 Garrison 3 | . . . . . . . . . . . . . 1 . . . 1 1 . . . Intercept . | . . . . . . . . . . . . . . . . . . . . . . Searches Triggered . | . . . . . . . . . . . . . . . . . . . . . . Construction Impeded 1 | . . . . . . . . . . . . . . . . . . 1 . . . Haulers Reinforced 2 | . . . . . . . . . . . . . . . 2 . . . . . . Active Scanning Responses . | . . . . . . . . . . . . . . . . . . . . . . Cargo Convoy Interrupts . | . . . . . . . . . . . . . . . . . . . . . . Stealth | -11 -10 -10 -10 -9 -8 -8 -8 -8 -7 -7 -7 -7 -6 -6 -5 -5 -4 -3 -3 -3 -3 --------- Run | Jun Mat Min Exi Min Mat Gar Mat Gar Fac Gar Fac Gar Fac Gar Fac Gar Fac Res Gar Res Arm Distress Signals 10 | . 4 . . . 1 . . . . . 1 . . . 1 . 1 . . 1 1 Communications Jammed 32 | . . . . . . . . . . . 1 . . . 8 . 9 6 . 7 1 Distress Signals 30 | . . . . . . . . . . . 1 . . . 7 . 9 5 . 7 1 Times Spotted 670 | . 41 4 . 8 20 34 11 37 4 . 3 26 18 35 16 49 143 24 28 53 116 Peak Tracking Total 45 | . 4 2 . 3 6 4 2 10 1 . 1 3 3 4 4 5 23 8 7 19 45 Tactical Retreats 40 | . 3 . . . 1 . . 3 . . . 1 . 1 1 2 10 1 1 10 6 Traps | -11 -10 -10 -10 -9 -8 -8 -8 -8 -7 -7 -7 -7 -6 -6 -5 -5 -4 -3 -3 -3 -3 ------- Run | Jun Mat Min Exi Min Mat Gar Mat Gar Fac Gar Fac Gar Fac Gar Fac Gar Fac Res Gar Res Arm Traps Triggered 34 | . 4 . . . 1 3 . 5 . . . 7 . 3 . 4 5 . 2 . . Indirectly . | . . . . . . . . . . . . . . . . . . . . . . Trap Hack Attempts . | . . . . . . . . . . . . . . . . . . . . . . Triggered . | . . . . . . . . . . . . . . . . . . . . . . Disarmed . | . . . . . . . . . . . . . . . . . . . . . . Reprogrammed . | . . . . . . . . . . . . . . . . . . . . . . Reused . | . . . . . . . . . . . . . . . . . . . . . . Traps Extracted . | . . . . . . . . . . . . . . . . . . . . . . Installed 2 | . . . . . . . . . . . . 1 1 . . . . . . . . Triggered . | . . . . . . . . . . . . . . . . . . . . . . Most Traps Carried 3 | . . . . . . . . . . . . 3 2 . . . . . . . . Machines | -11 -10 -10 -10 -9 -8 -8 -8 -8 -7 -7 -7 -7 -6 -6 -5 -5 -4 -3 -3 -3 -3 ---------- Run | Jun Mat Min Exi Min Mat Gar Mat Gar Fac Gar Fac Gar Fac Gar Fac Gar Fac Res Gar Res Arm Machines Disabled 275 | . 33 5 . 2 29 17 11 13 1 5 11 12 13 19 13 10 61 2 10 4 4 Max in Single Turn 7 | . 3 1 . 1 2 2 2 2 1 1 3 2 5 2 4 2 7 1 1 1 1 Garrison Relay 32 | . . . . . . 7 . 3 . 5 . 4 . 4 . 4 . . 5 . . Phase Generator 2 | . . . . . . . . 1 . . . . . . . 1 . . . . . Machines Repaired 3 | . . . . . 2 . . . . . . . . . . . . . . 1 . Machines Sabotaged . | . . . . . . . . . . . . . . . . . . . . . . Overloaded Fab Kills . | . . . . . . . . . . . . . . . . . . . . . . Hacking | -11 -10 -10 -10 -9 -8 -8 -8 -8 -7 -7 -7 -7 -6 -6 -5 -5 -4 -3 -3 -3 -3 --------- Run | Jun Mat Min Exi Min Mat Gar Mat Gar Fac Gar Fac Gar Fac Gar Fac Gar Fac Res Gar Res Arm Machines Accessed 80 | . 5 . . . 12 4 5 4 3 3 6 3 1 4 7 3 1 4 5 10 . Terminals 56 | . 3 . . . 7 4 4 4 1 3 2 3 . 4 5 3 . 1 5 7 . Fabricators 3 | . . . . . . . . . . . . . . . 1 . . 1 . 1 . Repair Stations 1 | . . . . . . . . . . . . . . . . . . 1 . . . Recycling Units 10 | . 2 . . . 2 . . . 1 . 3 . . . . . 1 . . 1 . Scanalyzers 2 | . . . . . 2 . . . . . . . . . . . . . . . . Garrison Access 8 | . . . . . 1 . 1 . 1 . 1 . 1 . 1 . . 1 . 1 . Total Hacks 196 | . 13 . . . 36 11 23 10 5 7 13 7 1 5 15 7 1 10 11 21 . Successful 115 | . 7 . . . 28 6 12 5 2 3 8 2 1 5 8 4 1 6 7 10 . Failed 79 | . 5 . . . 7 5 11 5 3 4 5 5 . . 7 3 . 4 4 11 . Catastrophic 7 | . . . . . . . 1 . 1 1 1 . . . 1 . . . . 2 . Database Lockouts 2 | . 1 . . . 1 . . . . . . . . . . . . . . . . Manual 73 | . 14 . 1 . 18 4 7 2 3 . 2 . . 1 8 2 . 4 1 6 . Terminals 154 | . 11 . . . 28 11 21 10 3 7 2 7 . 5 12 7 . 3 11 16 . Fabricators 7 | . . . . . . . . . . . . . . . 2 . . 4 . 1 . Repair Stations 2 | . . . . . . . . . . . . . . . . . . 2 . . . Recycling Units 21 | . 2 . . . 4 . . . 1 . 10 . . . . . 1 . . 3 . Scanalyzers 2 | . . . . . 2 . . . . . . . . . . . . . . . . Garrison Access 10 | . . . . . 2 . 2 . 1 . 1 . 1 . 1 . . 1 . 1 . Terminal Hacks 68 | . 3 . . . 16 5 8 4 . 3 2 2 . 4 5 3 . 1 6 6 . Robot Analysis 10 | . 3 . . . 4 . 2 . . . 1 . . . . . . . . . . Prototype ID Bank 3 | . . . . . . . . . . . . . . . 2 . . . . 1 . Open Door 7 | . . . . . . 1 . 1 . 1 . 1 . 1 . 1 . . 1 . . Open DSF 2 | . . . . . . . . . . . 1 . . . . . . . . 1 . Level Access Points 1 | . . . . . . . . . . . . . . . . . . 1 . . . Branch Access Points 1 | . . . . . 1 . . . . . . . . . . . . . . . . Emergency Access Points 12 | . . . . . 3 1 1 1 . 1 . . . 1 . 1 . . 1 2 . Alert Level 2 | . . . . . 1 . 1 . . . . . . . . . . . . . . Unreport Threat 8 | . . . . . 1 . 3 . . . . . . . 3 . . . . 1 . Locate Traps 1 | . . . . . . . . . . . . . . . . . . . . 1 . Hauler Manifests 2 | . . . . . 2 . . . . . . . . . . . . . . . . Registered Components 1 | . . . . . 1 . . . . . . . . . . . . . . . . Zone Layout 4 | . . . . . 3 . 1 . . . . . . . . . . . . . . Garrison Registry 5 | . . . . . . 1 . . . 1 . 1 . 1 . . . . 1 . . Patrol Navigation 7 | . . . . . . 2 . 1 . . . . . 1 . 1 . . 2 . . Security Stations 2 | . . . . . . . . 1 . . . . . . . . . . 1 . . Fabricator Hacks . | . . . . . . . . . . . . . . . . . . . . . . Repair Station Hacks 2 | . . . . . . . . . . . . . . . . . . 2 . . . Scan Component 1 | . . . . . . . . . . . . . . . . . . 1 . . . Repair 1 | . . . . . . . . . . . . . . . . . . 1 . . . Recycling Unit Hacks 9 | . . . . . 2 . . . 1 . 4 . . . . . 1 . . 1 . Report Inventory 6 | . . . . . 1 . . . 1 . 3 . . . . . 1 . . . . Retrieve Matter 1 | . . . . . . . . . . . . . . . . . . . . 1 . Retrieve Components 2 | . . . . . 1 . . . . . 1 . . . . . . . . . . Scanalyzer . | . . . . . . . . . . . . . . . . . . . . . . Garrison Access Hacks 9 | . . . . . 1 . 2 . 1 . 1 . 1 . 1 . . 1 . 1 . Unlock Access 8 | . . . . . 1 . 1 . 1 . 1 . 1 . 1 . . 1 . 1 . Coupler Status 1 | . . . . . . . 1 . . . . . . . . . . . . . . Unauthorized Hacks 27 | . 4 . . . 9 1 2 1 . . 1 . . 1 2 1 . 2 1 2 . Terminals 19 | . 2 . . . 6 1 2 1 . . . . . 1 2 1 . . 1 2 . Botnet 10 | . 1 . . . 4 . 2 . . . . . . . 2 . . . . 1 . Sabotage 4 | . 1 . . . 2 . . . . . . . . . . . . . . 1 . Override 5 | . . . . . . 1 . 1 . . . . . 1 . 1 . . 1 . . Fabricators 2 | . . . . . . . . . . . . . . . . . . 2 . . . Report 1 | . . . . . . . . . . . . . . . . . . 1 . . . Fabnet 1 | . . . . . . . . . . . . . . . . . . 1 . . . Repair Stations . | . . . . . . . . . . . . . . . . . . . . . . Recycling Units 4 | . 2 . . . 1 . . . . . 1 . . . . . . . . . . Tunnel 4 | . 2 . . . 1 . . . . . 1 . . . . . . . . . . Scanalyzers 2 | . . . . . 2 . . . . . . . . . . . . . . . . Extract 2 | . . . . . 2 . . . . . . . . . . . . . . . . Garrison Access . | . . . . . . . . . . . . . . . . . . . . . . Data Cores Recovered 7 | . . . . . 2 . 1 . . . . . 2 . . . . . . 2 . Used 3 | . . . . . 2 . 1 . . . . . . . . . . . . . . Hacking Detections 52 | . 2 . . . 7 2 4 3 2 1 5 3 1 1 5 3 . 3 3 7 . Full Trace Events 15 | . 2 . . . 1 1 1 1 1 . 1 2 . . 1 . . 1 . 3 . Feedback Events 1 | . . . . . . . . . . . . 1 . . . . . . . . . Corruption 1 | . . . . . . . . . . . . 1 . . . . . . . . . Feedback Blocked . | . . . . . . . . . . . . . . . . . . . . . . Robot Schematics Acquired . | . . . . . . . . . . . . . . . . . . . . . . Robots Built . | . . . . . . . . . . . . . . . . . . . . . . Authchips . | . . . . . . . . . . . . . . . . . . . . . . Time . | . . . . . . . . . . . . . . . . . . . . . . Total Robot Build Rating . | . . . . . . . . . . . . . . . . . . . . . . Part Schematics Acquired 6 | . . . . . 6 . . . . . . . . . . . . . . . . Parts Built . | . . . . . . . . . . . . . . . . . . . . . . Authchips . | . . . . . . . . . . . . . . . . . . . . . . Time . | . . . . . . . . . . . . . . . . . . . . . . Total Part Build Rating . | . . . . . . . . . . . . . . . . . . . . . . Parts Repaired . | . . . . . . . . . . . . . . . . . . . . . . Time 95 | . . . . . . . . . . . . . . . . . . 95 . . . Parts Recycled . | . . . . . . . . . . . . . . . . . . . . . . Recycled Matter . | . . . . . . . . . . . . . . . . . . . . . . Retrieved Matter . | . . . . . . . . . . . . . . . . . . . . . . Retrieved Components 12 | . . . . . 9 . . . . . 3 . . . . . . . . . . Parts Scanalyzed . | . . . . . . . . . . . . . . . . . . . . . . Part Schematics Acquired . | . . . . . . . . . . . . . . . . . . . . . . Parts Damaged . | . . . . . . . . . . . . . . . . . . . . . . Bothacking | -11 -10 -10 -10 -9 -8 -8 -8 -8 -7 -7 -7 -7 -6 -6 -5 -5 -4 -3 -3 -3 -3 ------------ Run | Jun Mat Min Exi Min Mat Gar Mat Gar Fac Gar Fac Gar Fac Gar Fac Gar Fac Res Gar Res Arm Used RIF Installer 7 | . . . . . . 1 . 1 . 1 . 1 . 1 . 1 . . 1 . . Hotswap 1 | . . . . . . . . . . . . . . . . 1 . . . . . Command Fork 1 | . . . . . . . . . . . . 1 . . . . . . . . . Signal Jammer 1 | . . . . . . . . . . 1 . . . . . . . . . . . Zone Cloak 1 | . . . . . . . . 1 . . . . . . . . . . . . . Alert ID Control 1 | . . . . . . . . . . . . . . . . . . . 1 . . Autoassimilate 1 | . . . . . . . . . . . . . . 1 . . . . . . . Robots Hacked 5 | . . . . . . . . . . . . . . . . . 2 . 1 1 1 Non-combat 3 | . . . . . . . . . . . . . . . . . 2 . . 1 . Combat 2 | . . . . . . . . . . . . . . . . . . . 1 . 1 Robot Hacks Applied 5 | . . . . . . . . . . . . . . . . . 2 . 1 1 1 parse_system 4 | . . . . . . . . . . . . . . . . . 1 . 1 1 1 check_alert 1 | . . . . . . . . . . . . . . . . . 1 . . . . Relay Couplers Released 54 | . . . . . . 14 . 5 . 7 . 6 . 8 . 6 . . 8 . . Machine Destruction 54 | . . . . . . 14 . 5 . 7 . 6 . 8 . 6 . . 8 . . Fabnet Peak Effective % . | . . . . . . . . . . . . . . . . . . . . . . Robots Rewired 29 | . . . . . . . . 10 . 6 . 2 . 2 1 3 2 . 1 . 2 Allies Hacked . | . . . . . . . . . . . . . . . . . . . . . . Hacks Repelled . | . . . . . . . . . . . . . . . . . . . . . . Allies | -11 -10 -10 -10 -9 -8 -8 -8 -8 -7 -7 -7 -7 -6 -6 -5 -5 -4 -3 -3 -3 -3 -------- Run | Jun Mat Min Exi Min Mat Gar Mat Gar Fac Gar Fac Gar Fac Gar Fac Gar Fac Res Gar Res Arm Total Allies 42 | . . 2 . . . 1 . 11 . 10 . 2 . 4 1 5 2 . 2 . 2 Largest Group 18 | . . 2 . . . 1 . 11 11 18 16 2 2 4 5 5 6 . 2 . 2 Highest-Rated Group 512 | . . 45 . . . 20 . 183 183 512 460 56 56 322 371 207 256 . 170 . 145 Highest-Rated Ally 148 | . . 31 . . . 20 . 31 31 80 80 31 31 148 148 46 49 . 119 . 89 Total Orders . | . . . . . . . . . . . . . . . . . . . . . . Ally Attacks 139 | . . 2 . . . 3 . 11 14 . 11 . . 5 19 2 42 . 16 . 14 Total Damage 3919 | . . 41 . . . 46 . 218 113 . 177 . . 115 567 54 1693 . 538 . 357 Kills 25 | . . . . . . 1 . 2 2 . 1 . . . 5 1 9 . 2 . 2 Allies Corrupted 1 | . . . . . . . . . . . . . . . . . . . . . 1 Allies Melted . | . . . . . . . . . . . . . . . . . . . . . . Intel | -11 -10 -10 -10 -9 -8 -8 -8 -8 -7 -7 -7 -7 -6 -6 -5 -5 -4 -3 -3 -3 -3 ------- Run | Jun Mat Min Exi Min Mat Gar Mat Gar Fac Gar Fac Gar Fac Gar Fac Gar Fac Res Gar Res Arm Robot Analysis Total 10 | . 3 . . . 4 . 2 . . . 1 . . . . . . . . . . Derelict Logs Recovered 2 | . . 1 . 1 . . . . . . . . . . . . . . . . . Drone Launches . | . . . . . . . . . . . . . . . . . . . . . . Drone Recoveries . | . . . . . . . . . . . . . . . . . . . . . . Exploration | -11 -10 -10 -10 -9 -8 -8 -8 -8 -7 -7 -7 -7 -6 -6 -5 -5 -4 -3 -3 -3 -3 ------------- Run | Jun Mat Min Exi Min Mat Gar Mat Gar Fac Gar Fac Gar Fac Gar Fac Gar Fac Res Gar Res Arm Turns Passed 11043 | 8 1971 932 232 270 560 636 223 583 100 519 173 664 231 807 275 594 707 343 390 464 361 Spaces Moved 14990 | 5 1071 337 210 183 999 804 248 1031 103 542 437 800 236 993 827 932 1599 748 595 1435 855 Core 9 | . . . . . . . . . . . . . . . . 9 . . . . . Treads . | . . . . . . . . . . . . . . . . . . . . . . Legs 439 | 5 434 . . . . . . . . . . . . . . . . . . . . Wheels . | . . . . . . . . . . . . . . . . . . . . . . Hover . | . . . . . . . . . . . . . . . . . . . . . . Flight 14542 | . 637 337 210 183 999 804 248 1031 103 542 437 800 236 993 827 923 1599 748 595 1435 855 Fastest Speed 5 | 120 37 117 37 108 11 15 15 15 5 59 11 5 14 11 5 10 5 7 12 7 5 Average Speed 30 | 120 115 117 109 113 23 39 32 15 21 59 14 29 55 12 11 12 9 11 12 9 9 Slowest Speed 150 | 120 120 117 117 117 108 105 80 17 80 59 59 63 64 66 12 150 10 65 12 12 49 Overloaded Moves 518 | . . . . . 9 . . . 15 . 2 30 . . 11 . 137 7 . 128 179 Propulsion Burnouts . | . . . . . . . . . . . . . . . . . . . . . . Robots Hopped 56 | . . . . . 2 2 . 3 1 . 2 . . 7 3 . 3 2 . 13 18 Cave-ins Triggered 2 | . . . . . . . . . . . 1 . 1 . . . . . . . . Exploration Rate (%) 58 | 2 97 81 59 58 84 77 28 97 4 90 19 91 12 93 26 96 49 18 89 51 62 Regions Visited 21 Branch Regions 4 Pre-discovered Areas 5 | . 2 1 . . 1 . . . . . 1 . . . . . . . . . . Known Exits Taken 9 | . . . . . 1 . 1 . 1 . 1 . 1 . 1 . 1 1 . 1 . Unknown Exits Taken 5 | 1 1 1 1 1 . . . . . . . . . . . . . . . . . Scrap Searched 3 | . . 1 . 2 . . . . . . . . . . . . . . . . . Spaces Dug 320 | . 21 3 . 7 36 . 39 . . . 7 . 4 . 13 . 140 24 . . 26 Terrain Destroyed 1683 | . 356 3 . 34 178 . 127 78 3 . 9 . 142 . 74 92 501 36 . 3 47 Melee 4 | . 1 3 . . . . . . . . . . . . . . . . . . . Projectile 554 | . 1 . . 34 110 . 72 . 3 . 9 . 9 . 47 1 182 36 . 3 47 AOE 1125 | . 354 . . . 68 . 55 78 . . . . 133 . 27 91 319 . . . . Terrain Rammed 2 | . . . . . . . . . . . . . . . . . . 2 . . . Walls Destroyed 2 | . . . . . . . . . . . . . . . . . . 2 . . . Machines Disabled . | . . . . . . . . . . . . . . . . . . . . . . Actions | -11 -10 -10 -10 -9 -8 -8 -8 -8 -7 -7 -7 -7 -6 -6 -5 -5 -4 -3 -3 -3 -3 --------- Run | Jun Mat Min Exi Min Mat Gar Mat Gar Fac Gar Fac Gar Fac Gar Fac Gar Fac Res Gar Res Arm Total 21319 | 7 1589 847 213 244 1327 1116 391 1452 182 744 547 1249 343 1694 1010 1418 2173 1003 911 1744 1115 Wait 3524 | . 247 487 . 25 157 120 93 215 53 167 71 175 44 432 93 236 238 171 155 260 85 Move 14871 | 4 1070 336 209 182 995 799 248 1024 101 540 432 798 236 981 820 931 1592 744 594 1409 826 Hop 45 | . . . . . 2 2 . 3 1 . 2 . . 4 3 . 3 2 . 12 11 Pick Up 80 | 1 5 . . 1 12 2 . 2 5 4 . 5 2 5 4 7 4 8 . 8 5 Fast Attach 109 | 1 10 . 1 4 8 6 . 6 1 1 8 3 5 14 3 11 5 3 2 10 7 Attach 41 | . 2 1 . . 6 1 . 1 7 1 . . . 3 . 5 3 7 . 3 1 Detach 4 | . . . 2 . . . . . 1 . . . . . . 1 . . . . . Swap 40 | . 3 . . . 2 2 . . . 1 . 1 1 4 5 2 7 3 . 3 6 Drop 160 | 1 7 2 1 1 17 7 . 7 5 6 7 7 6 18 5 18 7 9 2 17 10 Fire 1474 | . 188 10 . 23 117 98 44 78 3 22 26 96 33 149 66 95 206 35 79 22 84 Melee 17 | . 11 6 . . . . . . . . . . . . . . . . . . . Ram 11 | . . . . . . . . 6 . . . . . . . . . 5 . . . Kick . | . . . . . . . . . . . . . . . . . . . . . . Crush . | . . . . . . . . . . . . . . . . . . . . . . Escape Stasis 407 | . . . . . . 48 . 51 . . 1 124 . 34 . 36 54 . 36 . 23 Rewire 71 | . . . . . . . . 28 . 2 . 18 . . . 23 . . . . . Trap 2 | . . . . . . . . . . . . 1 1 . . . . . . . . Miscellaneous 463 | . 46 5 . 8 11 31 6 31 5 . . 21 15 50 11 53 54 16 43 . 57 Route ------- -11/Junkyard -10/Materials (discovered 4 exits: [*Mat x3] / [*Min]) -10/Mines (discovered 2 exits: [*Mat] / *Exi) -10/Exiles -9/Mines (discovered 2 exits: *Mat x2) -8/Materials (discovered 3 exits: *Fac x2 / Gar) -8/Garrison (discovered 3 exits: *Mat x3) -8/Materials -8/Garrison (discovered 3 exits: *Fac x3) -7/Factory (discovered 2 exits: [*Low] / Gar) -7/Garrison (discovered 3 exits: *Fac x3) -7/Factory (discovered 2 exits: *Fac / Gar) -7/Garrison (discovered 3 exits: *Fac x3) -6/Factory (discovered 3 exits: *Fac x2 / Gar) -6/Garrison (discovered 3 exits: *Fac x3) -5/Factory (discovered 2 exits: *Fac / Gar) -5/Garrison (discovered 3 exits: *Fac x3) -4/Factory (discovered 2 exits: *Res / *Upp) -3/Research (discovered 5 exits: *Res x3 / *Arm / Gar) -3/Garrison (discovered 3 exits: *Res x3) -3/Research (discovered 4 exits: *Res x2 / *Arm / Gar) -3/Armory (discovered 2 exits: *Res x2) History --------- Turn | Location | Event 1 | -11/Junkyard | Discovered new exit (range 0) 6 | -11/Junkyard | Upgraded with Propulsion slot (x3) 9 | -11/Junkyard | Entered Materials 191 | -10/Materials | Central database locked down 248 | -10/Materials | Discovered new exit (range 13) 311 | -10/Materials | Build established: Mutant 407 | -10/Materials | Core integrity fell below 50% 473 | -10/Materials | Core integrity fell below 20% 625 | -10/Materials | Reached level 2 710 | -10/Materials | Discovered new exit (range 8) 739 | -10/Materials | Discovered new exit (range 14) 899 | -10/Materials | Reached level 3 925 | -10/Materials | Upgraded with Propulsion slot (x1) 925 | -10/Materials | Upgraded with Utility slot (x1) 925 | -10/Materials | Upgraded with Weapon slot (x1) 1084 | -10/Materials | Discovered new exit (range 9) 1210 | -10/Materials | Reached level 4 1233 | -10/Materials | Upgraded with Utility slot (x1) 1660 | -10/Materials | Reached level 5 1670 | -10/Materials | Upgraded with Weapon slot (x1) 1980 | -10/Materials | Entered Mines 2062 | -10/Mines | Found a hidden stash of uninstalled traps 2106 | -10/Mines | Discovered new exit (range 13) 2162 | -10/Mines | Assembled infested the area 2220 | -10/Mines | Met 8R-AWN 2351 | -10/Mines | Build established: Scavenger-Mutant 2416 | -10/Mines | Discovered new exit (range 5) 2912 | -10/Mines | Entered Exiles 2945 | -10/Exiles | Welcomed by 8R-AWN 2962 | -10/Exiles | Met EX-HEX 2998 | -10/Exiles | Met EX-BIN 3011 | -10/Exiles | Reached level 6 3011 | -10/Exiles | Aligned with FarCom system 3012 | -10/Exiles | Given EX-Vault access code 3012 | -10/Exiles | Upgraded with Power slot (x1) 3012 | -10/Exiles | Upgraded with Weapon slot (x1) 3029 | -10/Exiles | Opened EX-Vault 3031 | -10/Exiles | Found Prototype Ballistic Gun 3031 | -10/Exiles | Identified XL Autogun Array 3059 | -10/Exiles | Warned to stay clear of 0b10 Research branches 3091 | -10/Exiles | Met EX-DEC 3132 | -10/Exiles | Discovered new exit (range 11) 3144 | -10/Exiles | Left Exiles lab with XL Autogun Array 3144 | -10/Exiles | Entered Mines 3189 | -9/Mines | Discovered new exit (range 6) 3191 | -9/Mines | Learned Materials garrison access intel 3302 | -9/Mines | Reached level 7 3317 | -9/Mines | Upgraded with Utility slot (x1) 3328 | -9/Mines | Discovered new exit (range 15) 3337 | -9/Mines | Build established: Scavenger-Gunner 3381 | -9/Mines | Received a Rocket Launcher from a helpful Derelict 3414 | -9/Mines | Entered Materials 3415 | -8/Materials | Loaded intel: 1 garrison access location 3416 | -8/Materials | Reached level 8 3469 | -8/Materials | Upgraded with Propulsion slot (x1) 3559 | -8/Materials | Central database locked down 3585 | -8/Materials | Reached level 9 3597 | -8/Materials | Upgraded with Utility slot (x1) 3683 | -8/Materials | Reached level 10 3697 | -8/Materials | Discovered new exit (range 13) 3784 | -8/Materials | Reached level 11 3785 | -8/Materials | Destroyed 7 combat bots 3785 | -8/Materials | Upgraded with Propulsion slot (x1) 3847 | -8/Materials | Build established: Hacker-Sprinter 3910 | -8/Materials | Reached level 12 3923 | -8/Materials | Discovered new exit (range 16) 3974 | -8/Materials | Identified exit to Garrison 3974 | -8/Materials | Entered Garrison 3978 | -8/Garrison | Triggered checkpoint 3985 | -8/Garrison | Rescued a captive Derelict 3995 | -8/Garrison | Garrison Relay disabled 4014 | -8/Garrison | Triggered checkpoint 4014 | -8/Garrison | Triggered checkpoint 4018 | -8/Garrison | Triggered checkpoint 4043 | -8/Garrison | Reached level 13 4050 | -8/Garrison | Upgraded with Propulsion slot (x1) 4070 | -8/Garrison | Garrison Relay disabled 4075 | -8/Garrison | Garrison Relay disabled 4090 | -8/Garrison | Garrison Relay disabled 4091 | -8/Garrison | Garrison Relay disabled 4111 | -8/Garrison | Triggered checkpoint 4116 | -8/Garrison | Destroyed 25 combat bots 4157 | -8/Garrison | Discovered new exit (range 36) 4157 | -8/Garrison | Discovered new exit (range 68) 4157 | -8/Garrison | Discovered new exit (range 25) 4331 | -8/Garrison | Triggered checkpoint 4398 | -8/Garrison | Installed Relay Interface Framework 4405 | -8/Garrison | Garrison Relay disabled 4405 | -8/Garrison | Reached level 14 4465 | -8/Garrison | Upgraded with Power slot (x1) 4531 | -8/Garrison | Identified exit to Materials 4544 | -8/Garrison | Garrison Relay disabled 4610 | -8/Garrison | Entered Materials 4833 | -8/Materials | Identified exit to Garrison 4833 | -8/Materials | Entered Garrison 4845 | -8/Garrison | Triggered checkpoint 4880 | -8/Garrison | Triggered checkpoint 4893 | -8/Garrison | Triggered checkpoint 4918 | -8/Garrison | Discovered new exit (range 10) 4980 | -8/Garrison | Triggered checkpoint 4990 | -8/Garrison | Build established: Scavenger-Sprinter 5002 | -8/Garrison | Destroyed 11 combat bots 5012 | -8/Garrison | Phase Generator disabled 5013 | -8/Garrison | Garrison Relay disabled 5022 | -8/Garrison | Rescued a captive Derelict 5031 | -8/Garrison | Triggered checkpoint 5032 | -8/Garrison | Triggered checkpoint 5035 | -8/Garrison | Reached level 15 5041 | -8/Garrison | Upgraded with Utility slot (x1) 5074 | -8/Garrison | Triggered checkpoint 5093 | -8/Garrison | Garrison Relay disabled 5108 | -8/Garrison | Destroyed 14 combat bots 5131 | -8/Garrison | Identified exit to Factory 5144 | -8/Garrison | Garrison Relay disabled 5207 | -8/Garrison | Expanded RIF knowledge: Zone Cloak 5240 | -8/Garrison | Learned Factory security intel 5416 | -8/Garrison | Entered Factory 5416 | -7/Factory | Accompanied by 11 allies 5437 | -7/Factory | Discovered new exit (range 8) 5446 | -7/Factory | Reached level 16 5447 | -7/Factory | Upgraded with Weapon slot (x1) 5488 | -7/Factory | Identified exit to Garrison 5516 | -7/Factory | Entered Garrison 5516 | -7/Garrison | Discovered recently destroyed garrison 5516 | -7/Garrison | Accompanied by 9 allies 5589 | -7/Garrison | Garrison Relay disabled 5594 | -7/Garrison | Found embedded Infiltrators 5640 | -7/Garrison | Discovered new exit (range 76) 5640 | -7/Garrison | Discovered new exit (range 74) 5640 | -7/Garrison | Discovered new exit (range 13) 5645 | -7/Garrison | Garrison Relay disabled 5758 | -7/Garrison | Expanded RIF knowledge: Signal Jamming 5776 | -7/Garrison | Rescued a captive Derelict 5781 | -7/Garrison | Rescued a captive Derelict 5789 | -7/Garrison | Garrison Relay disabled 5831 | -7/Garrison | Garrison Relay disabled 5856 | -7/Garrison | Garrison Relay disabled 6035 | -7/Garrison | Entered Factory 6035 | -7/Factory | Accompanied by 16 allies 6086 | -7/Factory | Discovered new exit (range 6) 6088 | -7/Factory | Crushed by falling debris 6199 | -7/Factory | Reached level 17 6208 | -7/Factory | Identified exit to Garrison 6208 | -7/Factory | Entered Garrison 6242 | -7/Garrison | Triggered checkpoint 6307 | -7/Garrison | Garrison Relay disabled 6386 | -7/Garrison | Discovered new exit (range 11) 6390 | -7/Garrison | Garrison Relay disabled 6397 | -7/Garrison | Triggered checkpoint 6463 | -7/Garrison | Triggered checkpoint 6517 | -7/Garrison | Discovered new exit (range 13) 6518 | -7/Garrison | Discovered new exit (range 13) 6518 | -7/Garrison | Discovered new exit (range 87) 6518 | -7/Garrison | Discovered new exit (range 65) 6532 | -7/Garrison | Destroyed 11 combat bots 6537 | -7/Garrison | Expanded RIF knowledge: Command Fork 6538 | -7/Garrison | Triggered checkpoint 6549 | -7/Garrison | Garrison Relay disabled 6588 | -7/Garrison | Spotted B-75 Beast 6597 | -7/Garrison | Destroyed B-75 Beast 6767 | -7/Garrison | Triggered checkpoint 6801 | -7/Garrison | Triggered checkpoint 6813 | -7/Garrison | Garrison Relay disabled 6813 | -7/Garrison | Reached level 18 6872 | -7/Garrison | Entered Factory 6872 | -6/Factory | Accompanied by 2 allies 6882 | -6/Factory | Upgraded with Utility slot (x1) 6946 | -6/Factory | Crushed by falling debris 7004 | -6/Factory | Discovered new exit (range 14) 7020 | -6/Factory | Discovered new exit (range 22) 7040 | -6/Factory | Build established: Gunner 7094 | -6/Factory | Reached level 19 7100 | -6/Factory | High security lockdown imminent 7103 | -6/Factory | Identified exit to Garrison 7103 | -6/Factory | Entered Garrison 7121 | -6/Garrison | Destroyed 8 combat bots 7172 | -6/Garrison | Triggered checkpoint 7190 | -6/Garrison | Discovered new exit (range 35) 7190 | -6/Garrison | Discovered new exit (range 68) 7190 | -6/Garrison | Discovered new exit (range 82) 7192 | -6/Garrison | Garrison Relay disabled 7195 | -6/Garrison | Expanded RIF knowledge: Autoassimilate 7231 | -6/Garrison | Triggered checkpoint 7270 | -6/Garrison | Garrison Relay disabled 7274 | -6/Garrison | Triggered checkpoint 7284 | -6/Garrison | Reached level 20 7288 | -6/Garrison | Upgraded with Propulsion slot (x1) 7292 | -6/Garrison | Triggered checkpoint 7326 | -6/Garrison | Garrison Relay disabled 7339 | -6/Garrison | Destroyed 12 combat bots 7368 | -6/Garrison | Triggered checkpoint 7403 | -6/Garrison | Build established: Scavenger-Scout 7404 | -6/Garrison | Triggered checkpoint 7438 | -6/Garrison | Triggered checkpoint 7456 | -6/Garrison | Triggered checkpoint 7489 | -6/Garrison | Identified exit to Factory 7507 | -6/Garrison | Rescued a captive Derelict 7507 | -6/Garrison | Rescued a captive Derelict 7517 | -6/Garrison | Destroyed 11 combat bots 7616 | -6/Garrison | Spotted B-75 Beast 7629 | -6/Garrison | Destroyed B-75 Beast 7683 | -6/Garrison | Garrison Relay disabled 7783 | -6/Garrison | Spotted B-86 Titan 7786 | -6/Garrison | Rewired B-75 Beast 7789 | -6/Garrison | Rewired B-90 Cyclops 7792 | -6/Garrison | Destroyed B-86 Titan 7873 | -6/Garrison | Build established: Scavenger-Sprinter 7910 | -6/Garrison | Entered Factory 7910 | -5/Factory | Accompanied by 4 allies 7912 | -5/Factory | Reached level 21 7939 | -5/Factory | Discovered new exit (range 11) 7959 | -5/Factory | Identified exit to Garrison 8039 | -5/Factory | Reached level 22 8109 | -5/Factory | High security lockdown imminent 8185 | -5/Factory | Entered Garrison 8193 | -5/Garrison | Reached level 23 8210 | -5/Garrison | Phase Generator disabled 8214 | -5/Garrison | Destroyed 8 combat bots 8246 | -5/Garrison | Spotted B-75 Beast 8246 | -5/Garrison | Identified exit to Factory 8249 | -5/Garrison | Triggered checkpoint 8250 | -5/Garrison | Triggered checkpoint 8254 | -5/Garrison | Destroyed B-75 Beast 8271 | -5/Garrison | Triggered checkpoint 8277 | -5/Garrison | Build established: Scavenger-Scout 8291 | -5/Garrison | Garrison Relay disabled 8305 | -5/Garrison | Spotted Executioner 8305 | -5/Garrison | Spotted Executioner 8306 | -5/Garrison | Destroyed Executioner 8309 | -5/Garrison | Destroyed Executioner 8316 | -5/Garrison | Found Prototype Device 8316 | -5/Garrison | Identified Adv. Kinecellerator 8320 | -5/Garrison | Found Prototype Processor 8321 | -5/Garrison | Identified Exp. Core Analyzer 8322 | -5/Garrison | Found Prototype Processor 8323 | -5/Garrison | Identified Exp. Targeting Computer 8330 | -5/Garrison | Destroyed 15 combat bots 8413 | -5/Garrison | Rescued a captive Derelict 8415 | -5/Garrison | Rescued a captive Derelict 8442 | -5/Garrison | Destroyed 13 combat bots 8479 | -5/Garrison | Garrison Relay disabled 8480 | -5/Garrison | Triggered checkpoint 8508 | -5/Garrison | Reached level 24 8527 | -5/Garrison | Garrison Relay disabled 8529 | -5/Garrison | Destroyed 7 combat bots 8539 | -5/Garrison | Triggered checkpoint 8566 | -5/Garrison | Triggered checkpoint 8583 | -5/Garrison | Expanded RIF knowledge: Hotswap 8592 | -5/Garrison | Garrison Relay disabled 8596 | -5/Garrison | Triggered checkpoint 8599 | -5/Garrison | Build established: Scavenger-Sprinter 8610 | -5/Garrison | Triggered checkpoint 8624 | -5/Garrison | Upgraded with Utility slot (x1) 8650 | -5/Garrison | Destroyed 7 combat bots 8672 | -5/Garrison | Triggered checkpoint 8779 | -5/Garrison | Entered Factory 8779 | -4/Factory | Accompanied by 5 allies 8787 | -4/Factory | Discovered new exit (range 7) 8797 | -4/Factory | High security lockdown imminent 8797 | -4/Factory | Reached level 25 8877 | -4/Factory | High security lockdown engaged 9104 | -4/Factory | Reached level 26 9160 | -4/Factory | Identified exit to Upper Caves 9170 | -4/Factory | Destroyed 25 combat bots 9178 | -4/Factory | Spotted B-86 Titan 9178 | -4/Factory | Destroyed B-86 Titan 9306 | -4/Factory | Reached level 27 9331 | -4/Factory | Upgraded with Utility slot (x1) 9371 | -4/Factory | Destroyed 41 combat bots 9443 | -4/Factory | Garrison activated, responded to threat 9486 | -4/Factory | Discovered new exit (range 8) 9486 | -4/Factory | Identified exit to Research 9486 | -4/Factory | Entered Research 9488 | -3/Research | Reached level 28 9507 | -3/Research | Identified exit to Research 9517 | -3/Research | Discovered new exit (range 4) 9517 | -3/Research | Identified exit to Armory 9736 | -3/Research | First assault squad dispatched 9788 | -3/Research | Found Prototype Device 9789 | -3/Research | Identified Exp. Thermal Shield 9829 | -3/Research | Identified exit to Garrison 9829 | -3/Research | Entered Garrison 9832 | -3/Garrison | Triggered checkpoint 9836 | -3/Garrison | Rescued a captive Derelict 9862 | -3/Garrison | Rewired Executioner 9865 | -3/Garrison | Garrison Relay disabled 9886 | -3/Garrison | Learned Research security intel 9886 | -3/Garrison | Identified exit to Research 9898 | -3/Garrison | Reached level 29 9904 | -3/Garrison | Spotted B-86 Titan 9920 | -3/Garrison | Destroyed B-86 Titan 9948 | -3/Garrison | Triggered checkpoint 9960 | -3/Garrison | Destroyed 16 combat bots 9963 | -3/Garrison | Destroyed Executioner 9966 | -3/Garrison | Found Exp. Core Analyzer 9986 | -3/Garrison | Found Exp. Core Analyzer 10007 | -3/Garrison | Triggered checkpoint 10060 | -3/Garrison | Triggered checkpoint 10082 | -3/Garrison | Garrison Relay disabled 10086 | -3/Garrison | Expanded RIF knowledge: Alert ID Control 10111 | -3/Garrison | Triggered checkpoint 10139 | -3/Garrison | Garrison Relay disabled 10145 | -3/Garrison | Garrison Relay disabled 10186 | -3/Garrison | Triggered checkpoint 10195 | -3/Garrison | Garrison Relay disabled 10214 | -3/Garrison | Discovered exit to Research (range 74) 10214 | -3/Garrison | Discovered exit to Research (range 60) 10214 | -3/Garrison | Discovered exit to Research (range 7) 10219 | -3/Garrison | Entered Research 10245 | -3/Research | Spotted B-86 Titan 10249 | -3/Research | Identified exit to Garrison 10368 | -3/Research | Discovered exit to Research (range 8) 10429 | -3/Research | Spotted B-86 Titan 10457 | -3/Research | Discovered exit to Armory (range 14) 10469 | -3/Research | First assault squad dispatched 10548 | -3/Research | Discovered exit to Research (range 15) 10612 | -3/Research | Core integrity fell below 50% 10667 | -3/Research | Reached level 30 10683 | -3/Research | Entered Armory 10688 | -3/Armory | Core integrity fell below 20% 10702 | -3/Armory | High security lockdown imminent 10782 | -3/Armory | High security lockdown engaged 10826 | -3/Armory | Found Prototype Processor 10826 | -3/Armory | Identified Exp. Signal Interpreter 10918 | -3/Armory | Destroyed 23 combat bots 10943 | -3/Armory | Discovered exit to Research (range 13) 10983 | -3/Armory | Spotted Executioner 10983 | -3/Armory | Spotted Investigator 10986 | -3/Armory | Discovered exit to Research (range 4) 10992 | -3/Armory | Scanned by Researcher 10995 | -3/Armory | Destroyed Investigator 11044 | -3/Armory | Destroyed by C-35 Carver with Carbide Saw Last Messages --------------- 11017_ Stasis bubble strength at 23. 11018_ Stasis bubble strength at 11. 11018_ Slug penetrates Wall. 11018_ Penetrated by Slug. 11018_ Critical hit (Burn: +18). 11019_ Stasis bubble bursts. 11019_ Acquired 15 matter. 11019_ Acquired Imp. Surge Thruster. 11022_ Slug penetrates Wall. 11022_ Slug penetrates G-73 Enforcer. 11022_ Slug penetrates L-61 Swordsman. 11022_ Slug penetrates Wall. 11023_ Recycling Unit disabled. 11023_ Q-thruster tumbles out of recycling unit. 11032_ M-36 Artificer repairs Y-72 Warden. 11035_ Acquired 26 matter. 11039_ Penetrated by Slug. 11042_ Slug penetrates Wall. 11044_ ALERT: Suspicious intruders detected, dispatching Cutter reinforcements to area. Map ----- +----------------------------------------------------+ | ?????????????????# # ""#??????? | | ???????????????????#"" ""########%# #??????? | | ??????????????????????????#######/#######??????? | | ??????????????????????????# % #??????? | | ??????????????????????????# """"" """" #??????? | | ??????????????????????????# """"" ""R"" #??????? | | ??????????????????????????# """"" "" "" #??????? | | ??????????????????????????# #####??? | | ??????????????????????l???# " #??? | | ?????????????????????# ???#######/####"######??? | | ????????????????# # ###### #?# #???????? | | ??????????????? l #?# #???????? | | ??????????????? H #?# #???????? | | ????????????????# ! ########## #?###???????? | | ?????????????????????????####### ##???????????? | | ?????????????????????????# ## #????????????? | | ?????????????????????????+ ## #????????????? | | ?????????????????????????# ?#* #????????????? | | ?????????????????????????# ##]=#????????????? | | ??????????????????????????# ##= =##???????????? | | ??????????????????????????# = /!;#???????????? | | ??????????????????????????# =%= ##???????????? | | ??????????????????????????# = % #????????????? | | ???????????????????######## ############## | | ???????????????????# cc/ | | ???????????????????# c@ YY Y | | ???????????????????#######+##;;#;#### #### | | ???????????????????????# #??# #??? | | ???????????????????????# #### #?## | | ???????????????????????# + #?# | | ???????????????????????# ==! #### ### ### | | ????????????????????BB?# =!! """ #??## # # | | ????????????????????BB?# =! """ #???# # # | | ???????????????????????# """ #???# # "T # | | ??????????????????????"" #???# # "" + | | ?????????????????????"F" """ """ #???# # # | | ?????????????????????" """ """ #???# # # | | ????????????????????#""" """ """ #####+###+####" | | ????????????????????#""" ## = | | ????????????????????#### ?"" "?" ## == | | ???????????????????????# ??" "?" ## === | | ???????????????????????# ??" "?" ## === | | ???????????????????????????? ?? ?# | | ????????????????????????????#???#?# | | ??????????????????????????????????# | | ??????????????????????????????????# | | ??????????????????????????????????# | | ??????????????????????????????????# | | ??????????????????????????????????############## | | | +----------------------------------------------------+ Best States ------------- Heat Dissipation 175 Energy Generation 83 Energy Capacity 570 Matter Stores 300 Matter Capacity 300 Sight Range 18 Terrain Scan Range 24 Terrain Scan Density 310 Jamming Range 16 Power Amplification 30 Additional Mass Support 16 Base Temperature (-) 200 Armor Coverage 150 Resistance: KI 15 Resistance: TH 30 Weapon Cycling 25 Phase Shifting 15 Evasion (%) 95 Targeting Accuracy 12 Core Analysis 12 Armor Integrity Analysis 40 Kinecelleration 50 Offensive Hacking 25 Defensive Hacking 14 Item Schematics ----------------- Lgt. Deuterium Engine | -8/Materials | Extracted Particle Gun | -8/Materials | Extracted Arm. Wheel | -8/Materials | Extracted Propulsion Shielding | -8/Materials | Extracted Adv. Targeting Computer | -8/Materials | Extracted Mni. Grenade Launcher | -8/Materials | Extracted Robot Schematics ------------------ None Fabricated ------------ Nothing Alien Tech Used ----------------- None Achievements -------------- Speed Demon Supersonic Ultimate Loadout Challenges ------------ None RPGLIKE | -11 -10 -10 -10 -9 -8 -8 -8 -8 -7 -7 -7 -7 -6 -6 -5 -5 -4 -3 -3 -3 -3 --------- Run | Jun Mat Min Exi Min Mat Gar Mat Gar Fac Gar Fac Gar Fac Gar Fac Gar Fac Res Gar Res Arm Levels Raised 29 | . 4 . 1 1 5 2 . 1 1 . 1 1 1 1 2 2 3 1 1 1 . XP Earned 47643 | 3000 6288 989 243 1600 7578 3171 466 1420 1001 759 584 1446 1994 2269 2790 2206 4959 1465 2074 214 1127 XP Spent 46470 | 2650 5620 . 1600 1700 6280 3700 600 1800 1400 . 1150 . 2000 2960 2430 3400 4100 2085 . 2800 195 Upgrades 70 | 4 15 . 2 4 8 3 1 2 1 . 2 . 1 3 4 2 3 6 . 6 3 Power Slot 2 | . . . 1 . . 1 . . . . . . . . . . . . . . . Propulsion Slot 8 | 3 1 . . . 2 1 . . . . . . . 1 . . . . . . . Utility Slot 8 | . 2 . . 1 1 . . 1 . . . . 1 . . 1 1 . . . . Weapon Slot 4 | . 2 . 1 . . . . . 1 . . . . . . . . . . . . Core Integrity 6 | . 2 . . . . . . . . . . . . . . . . 1 . . 3 Heat Dissipation 10 | . 2 . . 2 2 . . . . . . . . 2 . . . 2 . . . Energy Storage 1 | . . . . . . . . . . . . . . . . . . 1 . . . Mass Support 3 | . 1 . . . . . 1 . . . . . . . . 1 . . . . . Inventory Capacity 5 | 1 1 . . . . . . . . . 1 . . . 1 . . . . 1 . Sight Range 2 | . . . . . . . . 1 . . . . . . . . . 1 . . . Terrain Scan Density 3 | . 2 . . . . . . . . . . . . . 1 . . . . . . Ranged Accuracy 5 | . . . . 1 1 1 . . . . . . . . . . 2 . . . . Hack Attack % 2 | . . . . . 1 . . . . . 1 . . . . . . . . . . KI Resistance % 3 | . . . . . . . . . . . . . . . . . . . . 3 . TH Resistance % 2 | . . . . . . . . . . . . . . . . . . . . 2 . KI Damage % 4 | . . . . . 1 . . . . . . . . . 2 . . 1 . . . TH Damage % 2 | . 2 . . . . . . . . . . . . . . . . . . . . Protomatter Created 7770 | . 421 94 . 117 192 576 243 596 49 10 . 444 126 823 230 798 1568 123 578 15 767 Integrity Restored 9628 | . 997 111 . 162 197 540 82 599 99 . . 422 300 960 255 1074 1212 369 969 . 1280 Core 7232 | . 965 111 . 93 186 400 44 460 . . . 339 207 696 255 587 1011 369 609 . 900 Parts 2396 | . 32 . . 69 11 140 38 139 99 . . 83 93 264 . 487 201 . 360 . 380 Protomatter Decayed 4972 | . 72 113 . 61 99 345 114 442 . 10 . 253 58 484 150 433 1657 . 249 15 417 Game ------ Seed DataSkeletonField Manual? 1 Play Time 03:34:52 Cumulative 422.3 hours Start 2023.03.06 @ 03:51:19 End 2023.03.06 @ 07:29:50 Sessions 1 Manual Loads 0 Difficulty Rogue Special Mode Winter2019/RPGLIKE Game No. 474 Rogue 474 Adventurer 0 Explorer 0 Win Type - Total 0 Types 0/0/0/0/0/0/0/0/0 Lore% 55 Gallery% 77 Achievement% 63 Wizard Run 0 Options --------- ASCII 0 Keyboard 0 Movement Mouse Keybinds 0 Fullscreen 2 Font 24/Smallcaps Map View 76x50 Tactical HUD 1 Map Filters NONE Filters NONE Steam 1 RUN: 3d240a76-544d-40f7-97fd-6cc834d522e9